{"text_format":"3","workbook":"xlsx","n_sheets":3,"sheets":["רשימת סטודנטים","סטודנטים בקורס","פרטי סטודנטים"],"not_rendered":{"images":2,"defined_names":8},"read":"whole","date_system":"1900"}

{"sheet":"רשימת סטודנטים","index":0,"n_rows":8,"n_cols":13,"rows_kept":8,"merged":[[1,2,2,3],[1,4,1,11],[2,4,2,11],[6,12,8,16]]}
[]
[null,null,"רשימת סטודנטים",null,"עבור אל 'סטודנטים בקורס'"]
[{"$nulls":4},"עבור אל 'פרטי סטודנטים'"]
[null,null,"שם הסטודנט","דואר אלקטרוני","טלפון בבית","טלפון נייד","תאריך לידה","איש קשר לשעת חירום","טלפון לשעת חירום","רופא","טלפון של הרופא","  "]
[null,null,"שם 1","כתובת דואר אלקטרוני","טלפון בבית","טלפון נייד","תאריך","איש קשר 1","טלפון לשעת חירום","רופא 1","טלפון של הרופא"]
[null,null,"שם 2","כתובת דואר אלקטרוני","טלפון בבית","טלפון נייד","תאריך","איש קשר 2","טלפון לשעת חירום","רופא 2","טלפון של הרופא"]
[null,null,"שם 3","כתובת דואר אלקטרוני","טלפון בבית","טלפון נייד","תאריך","איש קשר 3","טלפון לשעת חירום","רופא 3","טלפון של הרופא",null,"עצה: כדי להוסיף סטודנטים, בתא האחרון של הטבלה, הקש על מקש Tab."]
[null,null,"שם 4","כתובת דואר אלקטרוני","טלפון בבית","טלפון נייד","תאריך","איש קשר 4","טלפון לשעת חירום","רופא 4","טלפון של הרופא"]

{"sheet":"סטודנטים בקורס","index":1,"n_rows":12,"n_cols":7,"rows_kept":12,"merged":[[1,2,2,2],[1,3,2,3],[1,4,1,6],[2,4,2,6]]}
[]
[null,null,"סטודנטים בקורס","Graphic Design Institute","עבור אל 'רשימת סטודנטים'"]
[{"$nulls":4},"עבור אל 'פרטי סטודנטים'"]
[null,null,"קורס","שם הקורס","תאריך התחלה","תאריך"]
[null,null,"מרצה","מרצה 1","תאריך סיום","תאריך"]
[null,null,"מספר הסטודנטים שנרשמו",{"$f":"COUNTA(StudentRoster[שם הסטודנט])","v":4}]
[]
[null,null,"שם הסטודנט","דואר אלקטרוני","טלפון בבית","טלפון נייד","  "]
[null,null,"שם 1",{"$f":"IFERROR(VLOOKUP(StudentRoster[[#This Row],[שם הסטודנט]],סטודנטים[],2),\"\")","v":"כתובת דואר אלקטרוני"},{"$f":"IFERROR(VLOOKUP(StudentRoster[[#This Row],[שם הסטודנט]],סטודנטים[],3),\"\")","v":"טלפון בבית"},{"$f":"IFERROR(VLOOKUP(StudentRoster[[#This Row],[שם הסטודנט]],סטודנטים[],4),\"\")","v":"טלפון נייד"}]
[null,null,"שם 2",{"$f":"IFERROR(VLOOKUP(StudentRoster[[#This Row],[שם הסטודנט]],סטודנטים[],2),\"\")","v":"כתובת דואר אלקטרוני"},{"$f":"IFERROR(VLOOKUP(StudentRoster[[#This Row],[שם הסטודנט]],סטודנטים[],3),\"\")","v":"טלפון בבית"},{"$f":"IFERROR(VLOOKUP(StudentRoster[[#This Row],[שם הסטודנט]],סטודנטים[],4),\"\")","v":"טלפון נייד"}]
[null,null,"שם 3",{"$f":"IFERROR(VLOOKUP(StudentRoster[[#This Row],[שם הסטודנט]],סטודנטים[],2),\"\")","v":"כתובת דואר אלקטרוני"},{"$f":"IFERROR(VLOOKUP(StudentRoster[[#This Row],[שם הסטודנט]],סטודנטים[],3),\"\")","v":"טלפון בבית"},{"$f":"IFERROR(VLOOKUP(StudentRoster[[#This Row],[שם הסטודנט]],סטודנטים[],4),\"\")","v":"טלפון נייד"}]
[null,null,"שם 4",{"$f":"IFERROR(VLOOKUP(StudentRoster[[#This Row],[שם הסטודנט]],סטודנטים[],2),\"\")","v":"כתובת דואר אלקטרוני"},{"$f":"IFERROR(VLOOKUP(StudentRoster[[#This Row],[שם הסטודנט]],סטודנטים[],3),\"\")","v":"טלפון בבית"},{"$f":"IFERROR(VLOOKUP(StudentRoster[[#This Row],[שם הסטודנט]],סטודנטים[],4),\"\")","v":"טלפון נייד"}]

{"sheet":"פרטי סטודנטים","index":2,"n_rows":13,"n_cols":4,"rows_kept":13,"merged":[[1,2,2,2],[1,3,1,4],[2,3,2,4],[3,2,3,3]]}
[]
[null,null,"פרטי סטודנטים","עבור אל 'רשימת סטודנטים'"]
[{"$nulls":3},"עבור אל 'סטודנטים בקורס'"]
[null,null,"עצה: בחר סטודנט מהרשימה הנפתחת בתא D5 כדי לעדכן את פרטי הסטודנט"]
[null,null,"שם הסטודנט","שם 1"]
[null,null,"דואר אלקטרוני",{"$f":"IFERROR(VLOOKUP(StudentName,סטודנטים[],2,FALSE),\"\")","v":"כתובת דואר אלקטרוני"}]
[null,null,"טלפון בבית",{"$f":"IFERROR(VLOOKUP(StudentName,סטודנטים[],3,FALSE),\"\")","v":"טלפון בבית"}]
[null,null,"טלפון נייד",{"$f":"IFERROR(VLOOKUP(StudentName,סטודנטים[],4,FALSE),\"\")","v":"טלפון נייד"}]
[null,null,"תאריך לידה",{"$f":"IFERROR(VLOOKUP(StudentName,סטודנטים[],5,FALSE),\"\")","v":"תאריך"}]
[null,null,"איש קשר לשעת חירום",{"$f":"IFERROR(VLOOKUP(StudentName,סטודנטים[],6,FALSE),\"\")","v":"איש קשר 1"}]
[null,null,"טלפון לשעת חירום",{"$f":"IFERROR(VLOOKUP(StudentName,סטודנטים[],7,FALSE),\"\")","v":"טלפון לשעת חירום"}]
[null,null,"רופא",{"$f":"IFERROR(VLOOKUP(StudentName,סטודנטים[],8,FALSE),\"\")","v":"רופא 1"}]
[null,null,"טלפון של הרופא",{"$f":"IFERROR(VLOOKUP(StudentName,סטודנטים[],9,FALSE),\"\")","v":"טלפון של הרופא"}]